fUSD/lending_fUSD_20260528
["ID","MTS","AMOUNT","RATE_DAILY","PERIOD"]
[423192694,1779917439000,-501.15990276,0.00032603,2]
[423192698,1779917439000,-150.0,0.00032603,2]
[423192696,1779917439000,-150.0,0.00032603,2]
[423192697,1779917439000,-500.0,0.00032603,2]
[423192693,1779917439000,-500.0,0.00032603,2]
[423192704,1779917439000,-150.0,0.00032603,2]
[423192699,1779917439000,-622.5845227,0.00032603,2]
[423192706,1779917439000,-500.0,0.00032603,2]
[423192719,1779917439000,-150.0,0.00032603,2]
[423192710,1779917439000,-164.66146701,0.00032603,2]
[423192709,1779917439000,-500.0,0.00032603,2]
[423192711,1779917439000,-500.0,0.00032603,2]
[423192712,1779917439000,-500.0,0.00032603,2]
[423192714,1779917439000,-500.0,0.00032603,2]
[423192713,1779917439000,-500.0,0.00032603,2]
[423192717,1779917439000,-500.0,0.00032603,2]
[423192715,1779917439000,-500.0,0.00032603,2]
[423192718,1779917439000,-267.19449444,0.00032603,2]
[423192716,1779917439000,-150.0,0.00032603,2]
[423192721,1779917439000,-500.0,0.00032603,2]
[423192720,1779917439000,-500.0,0.00032603,2]
[423192695,1779917439000,-500.0,0.00032603,2]
[423192708,1779917439000,-150.0,0.00032603,2]
[423192692,1779917439000,-500.0,0.00032603,2]
[423192655,1779917439000,-1801.0,0.00032603,2]
[423192690,1779917439000,-202.688267,0.00032603,7]
[423192653,1779917439000,-1801.0,0.00032603,2]
[423192657,1779917439000,-1804.32185985,0.00032603,2]
[423192664,1779917439000,-500.0,0.00032603,2]
[423192662,1779917439000,-500.0,0.00032603,2]
[423192668,1779917439000,-500.0,0.00032603,2]
[423192666,1779917439000,-500.0,0.00032603,2]
[423192659,1779917439000,-267.88170662,0.00032603,2]
[423192661,1779917439000,-500.0,0.00032603,2]
[423192670,1779917439000,-500.0,0.00032603,2]
[423192671,1779917439000,-500.0,0.00032603,2]
[423192669,1779917439000,-150.0,0.00032603,2]
[423192672,1779917439000,-150.0,0.00032603,2]
[423192674,1779917439000,-500.0,0.00032603,2]
[423192673,1779917439000,-245.00898,0.00032603,2]
[423192677,1779917439000,-500.0,0.00032603,2]
[423192681,1779917439000,-500.0,0.00032603,2]
[423192678,1779917439000,-500.0,0.00032603,2]
[423192675,1779917439000,-478.92004117,0.00032603,2]
[423192679,1779917439000,-500.0,0.00032603,2]
[423192676,1779917439000,-500.0,0.00032603,2]
[423192680,1779917439000,-500.0,0.00032603,2]
[423192683,1779917439000,-500.0,0.00032603,2]
[423192682,1779917439000,-500.0,0.00032603,2]
[423192684,1779917439000,-500.0,0.00032603,2]
[423192685,1779917439000,-500.0,0.00032603,2]
[423192723,1779917439000,-500.0,0.00032603,2]
[423192688,1779917439000,-202.688267,0.00032603,7]
[423192687,1779917439000,-535.00278977,0.00032603,2]
[423192689,1779917439000,-202.688267,0.00032603,7]
[423192691,1779917439000,-202.688259,0.00032603,7]
[423192722,1779917439000,-180.65416299,0.00032603,2]
[423192686,1779917439000,-500.0,0.00032603,2]
[423192724,1779917439000,-500.0,0.00032603,2]
[423192760,1779917439000,-304.004325,0.00032603,7]
[423192761,1779917439000,-500.0,0.00032603,2]
[423192762,1779917439000,-500.0,0.00032603,2]
[423192765,1779917439000,-500.0,0.00032603,2]
[423192764,1779917439000,-500.0,0.00032603,2]
[423192763,1779917439000,-500.0,0.00032603,2]
[423192767,1779917439000,-500.0,0.00032603,2]
[423192772,1779917439000,-500.0,0.00032603,2]
[423192775,1779917439000,-500.0,0.00032603,2]
[423192774,1779917439000,-500.0,0.00032603,2]
[423192769,1779917439000,-500.0,0.00032603,2]
[423192768,1779917439000,-500.0,0.00032603,2]
[423192770,1779917439000,-500.0,0.00032603,2]
[423192771,1779917439000,-500.0,0.00032603,2]
[423192773,1779917439000,-500.0,0.00032603,2]
[423192777,1779917439000,-500.0,0.00032603,2]
[423192778,1779917439000,-500.0,0.00032603,2]
[423192776,1779917439000,-500.0,0.00032603,2]
[423192779,1779917439000,-500.0,0.00032603,2]
[423192781,1779917439000,-500.0,0.00032603,2]
[423192782,1779917439000,-500.0,0.00032603,2]
[423192783,1779917439000,-500.0,0.00032603,2]
[423192780,1779917439000,-500.0,0.00032603,2]
[423192785,1779917439000,-500.0,0.00032603,2]
[423192784,1779917439000,-500.0,0.00032603,2]
[423192788,1779917439000,-500.0,0.00032603,2]
[423192786,1779917439000,-500.0,0.00032603,2]
[423192789,1779917439000,-506.81793186,0.00032603,2]
[423192725,1779917439000,-500.0,0.00032603,2]
[423192758,1779917439000,-304.004321,0.00032603,7]
[423192759,1779917439000,-304.004321,0.00032603,7]
[423192787,1779917439000,-381.68311281,0.00032603,2]
[423192755,1779917439000,-500.0,0.00032603,2]
[423192752,1779917439000,-500.0,0.00032603,2]
[423192726,1779917439000,-172.95795463,0.00032603,2]
[423192727,1779917439000,-500.0,0.00032603,2]
[423192732,1779917439000,-500.0,0.00032603,2]
[423192733,1779917439000,-500.0,0.00032603,2]
[423192730,1779917439000,-500.0,0.00032603,2]
[423192731,1779917439000,-500.0,0.00032603,2]
[423192729,1779917439000,-500.0,0.00032603,2]
[423192734,1779917439000,-150.0,0.00032603,2]
[423192736,1779917439000,-500.0,0.00032603,2]
[423192738,1779917439000,-500.0,0.00032603,2]
[423192739,1779917439000,-500.0,0.00032603,2]
[423192735,1779917439000,-500.0,0.00032603,2]
[423192737,1779917439000,-150.0,0.00032603,2]
[423192741,1779917439000,-500.0,0.00032603,2]
[423192728,1779917439000,-500.0,0.00032603,2]
[423192742,1779917439000,-500.0,0.00032603,2]
[423192757,1779917439000,-439.48495491,0.00032603,2]
[423192756,1779917439000,-500.0,0.00032603,2]
[423192754,1779917439000,-500.0,0.00032603,2]
[423192753,1779917439000,-500.0,0.00032603,2]
[423192740,1779917439000,-150.0,0.00032603,2]
[423192750,1779917439000,-184.48877466,0.00032603,2]
[423192751,1779917439000,-157.41168338,0.00032603,2]
[423192749,1779917439000,-500.0,0.00032603,2]
[423192747,1779917439000,-304.004321,0.00032603,7]
[423192743,1779917439000,-150.0,0.00032603,2]
[423192746,1779917439000,-150.0,0.00032603,2]
[423192745,1779917439000,-500.0,0.00032603,2]
[423192744,1779917439000,-500.0,0.00032603,2]
[423192748,1779917439000,-500.0,0.00032603,2]
[423192836,1779917440000,-500.0,0.00032603,2]
[423192833,1779917440000,-505.38918001,0.00032603,2]
[423192830,1779917440000,-500.0,0.00032603,2]
[423192832,1779917440000,-500.0,0.00032603,2]
[423192831,1779917440000,-500.0,0.00032603,2]
[423192821,1779917440000,-500.0,0.00032603,2]
[423192826,1779917440000,-500.0,0.00032603,2]
[423192825,1779917440000,-401.16619608,0.00032603,2]
[423192827,1779917440000,-500.0,0.00032603,2]
[423192824,1779917440000,-150.0,0.00032603,2]
[423192822,1779917440000,-531.57193254,0.00032603,2]
[423192828,1779917440000,-500.0,0.00032603,2]
[423192835,1779917440000,-500.0,0.00032603,2]
[423192841,1779917440000,-540.0,0.00032603,2]
[423192834,1779917440000,-500.0,0.00032603,2]
[423192838,1779917440000,-500.0,0.00032603,2]
[423192837,1779917440000,-500.0,0.00032603,2]
[423192839,1779917440000,-540.0,0.00032603,2]
[423192840,1779917440000,-500.0,0.00032603,2]
[423192843,1779917440000,-500.0,0.00032603,2]
[423192842,1779917440000,-540.0,0.00032603,2]
[423192844,1779917440000,-540.0,0.00032603,2]
[423192845,1779917440000,-500.0,0.00032603,2]
[423192847,1779917440000,-500.0,0.00032603,2]
[423192848,1779917440000,-540.0,0.00032603,2]
[423192823,1779917440000,-500.0,0.00032603,2]
[423192846,1779917440000,-500.0,0.00032603,2]
[423192829,1779917440000,-500.0,0.00032603,2]
[423192820,1779917440000,-500.0,0.00032603,2]
[423192802,1779917440000,-500.0,0.00032603,2]
[423192818,1779917440000,-500.0,0.00032603,2]
[423192851,1779917440000,-500.0,0.00032603,2]
[423192790,1779917440000,-500.0,0.00032603,2]
[423192791,1779917440000,-500.0,0.00032603,2]
[423192792,1779917440000,-500.0,0.00032603,2]
[423192800,1779917440000,-605.08657831,0.00032603,2]
[423192793,1779917440000,-150.0,0.00032603,2]
[423192794,1779917440000,-500.0,0.00032603,2]
[423192795,1779917440000,-500.0,0.00032603,2]
[423192797,1779917440000,-500.0,0.00032603,2]
[423192796,1779917440000,-500.0,0.00032603,2]
[423192799,1779917440000,-500.0,0.00032603,2]
[423192798,1779917440000,-500.0,0.00032603,2]
[423192801,1779917440000,-500.0,0.00032603,2]
[423192817,1779917440000,-542.77531095,0.00032603,2]
[423192804,1779917440000,-500.0,0.00032603,2]
[423192807,1779917440000,-500.0,0.00032603,2]
[423192809,1779917440000,-500.0,0.00032603,2]
[423192811,1779917440000,-500.0,0.00032603,2]
[423192805,1779917440000,-500.0,0.00032603,2]
[423192808,1779917440000,-500.0,0.00032603,2]
[423192812,1779917440000,-500.0,0.00032603,2]
[423192806,1779917440000,-500.0,0.00032603,2]
[423192810,1779917440000,-500.0,0.00032603,2]
[423192815,1779917440000,-500.0,0.00032603,2]
[423192813,1779917440000,-500.0,0.00032603,2]
[423192816,1779917440000,-500.0,0.00032603,2]
[423192814,1779917440000,-500.0,0.00032603,2]
[423192819,1779917440000,-500.0,0.00032603,2]
[423192803,1779917440000,-500.0,0.00032603,2]
[423192852,1779917440000,-540.0,0.00032603,2]
[423192859,1779917440000,-540.0,0.00032603,2]
[423192850,1779917440000,-540.0,0.00032603,2]
[423192886,1779917440000,-442.0,0.00032603,2]
[423192885,1779917440000,-761.0,0.00032603,2]
[423192887,1779917440000,-761.0,0.00032603,2]
[423192890,1779917440000,-442.0,0.00032603,2]
[423192888,1779917440000,-442.0,0.00032603,2]
[423192889,1779917440000,-761.0,0.00032603,2]
[423192892,1779917440000,-442.0,0.00032603,2]
[423192893,1779917440000,-761.0,0.00032603,2]
[423192894,1779917440000,-442.0,0.00032603,2]
[423192895,1779917440000,-761.0,0.00032603,2]
[423192891,1779917440000,-761.0,0.00032603,2]
[423192900,1779917440000,-442.0,0.00032603,2]
[423192898,1779917440000,-442.0,0.00032603,2]
[423192882,1779917440000,-540.0,0.00032603,2]
[423192896,1779917440000,-442.0,0.00032603,2]
[423192897,1779917440000,-761.0,0.00032603,2]
[423192904,1779917440000,-442.0,0.00032603,2]
[423192901,1779917440000,-298.34547,0.00032603,7]
[423192903,1779917440000,-761.0,0.00032603,2]
[423192849,1779917440000,-500.0,0.00032603,2]
[423192912,1779917440000,-761.0,0.00032603,2]
[423192913,1779917440000,-289.7365858,0.00032603,2]
[423192906,1779917440000,-761.0,0.00032603,2]
[423192908,1779917440000,-442.0,0.00032603,2]
[423192909,1779917440000,-761.0,0.00032603,2]
[423192907,1779917440000,-761.0,0.00032603,2]
[423192910,1779917440000,-761.0,0.00032603,2]
[423192911,1779917440000,-442.0,0.00032603,2]
[423192899,1779917440000,-761.0,0.00032603,2]
[423192880,1779917440000,-761.0,0.00032603,2]
[423192905,1779917440000,-540.0,0.00032603,2]
[423192883,1779917440000,-761.0,0.00032603,2]
[423192884,1779917440000,-442.0,0.00032603,2]
[423192860,1779917440000,-500.0,0.00032603,2]
[423192856,1779917440000,-540.0,0.00032603,2]
[423192855,1779917440000,-298.34547,0.00032603,7]
[423192858,1779917440000,-540.0,0.00032603,2]
[423192857,1779917440000,-500.0,0.00032603,2]
[423192854,1779917440000,-540.0,0.00032603,2]
[423192861,1779917440000,-540.0,0.00032603,2]
[423192862,1779917440000,-540.0,0.00032603,2]
[423192864,1779917440000,-500.0,0.00032603,2]
[423192863,1779917440000,-540.0,0.00032603,2]
[423192865,1779917440000,-540.0,0.00032603,2]
[423192866,1779917440000,-540.0,0.00032603,2]
[423192853,1779917440000,-540.0,0.00032603,2]
[423192870,1779917440000,-540.0,0.00032603,2]
[423192868,1779917440000,-500.0,0.00032603,2]
[423192879,1779917440000,-442.0,0.00032603,2]
[423192878,1779917440000,-761.0,0.00032603,2]
[423192881,1779917440000,-442.0,0.00032603,2]
[423192877,1779917440000,-442.0,0.00032603,2]
[423192875,1779917440000,-442.0,0.00032603,2]
[423192876,1779917440000,-761.0,0.00032603,2]
[423192867,1779917440000,-298.34547,0.00032603,7]
[423192873,1779917440000,-442.0,0.00032603,2]
[423192874,1779917440000,-298.34547,0.00032603,7]
[423192872,1779917440000,-442.0,0.00032603,2]
[423192869,1779917440000,-540.0,0.00032603,2]
[423192871,1779917440000,-321.79699444,0.00032603,2]
[423192939,1779917441000,-500.0,0.00032603,2]
[423192943,1779917441000,-454.0,0.00032603,2]
[423192942,1779917441000,-761.0,0.00032603,2]
[423192944,1779917441000,-779.42345788,0.00032603,2]
[423192945,1779917441000,-151.0,0.00032603,7]
[423192946,1779917441000,-151.0,0.00032603,7]
[423192947,1779917441000,-151.0,0.00032603,7]
[423192949,1779917441000,-500.0,0.00032603,2]
[423192950,1779917441000,-500.0,0.00032603,2]
[423192961,1779917441000,-563.0,0.00032603,2]
[423192953,1779917441000,-563.0,0.00032603,2]
[423192951,1779917441000,-500.0,0.00032603,2]
[423192952,1779917441000,-402.19058266,0.00032603,2]
[423192955,1779917441000,-172.02329996,0.00032603,2]
[423192954,1779917441000,-150.0,0.00032603,2]
[423192956,1779917441000,-563.0,0.00032603,2]
[423192958,1779917441000,-563.0,0.00032603,2]
[423192940,1779917441000,-556.0,0.00032603,2]
[423192959,1779917441000,-563.0,0.00032603,2]
[423192948,1779917441000,-500.0,0.00032603,2]
[423192941,1779917441000,-442.0,0.00032603,2]
[423192923,1779917441000,-540.0,0.00032603,2]
[423192937,1779917441000,-500.0,0.00032603,2]
[423192962,1779917441000,-563.0,0.00032603,2]
[423192917,1779917441000,-250.2634142,0.00032603,2]
[423192918,1779917441000,-442.0,0.00032603,2]
[423192919,1779917441000,-761.0,0.00032603,2]
[423192925,1779917441000,-761.0,0.00032603,2]
[423192920,1779917441000,-442.0,0.00032603,2]
[423192921,1779917441000,-761.0,0.00032603,2]
[423192926,1779917441000,-542.75105378,0.00032603,2]
[423192924,1779917441000,-442.0,0.00032603,2]
[423192938,1779917441000,-500.0,0.00032603,2]
[423192922,1779917441000,-151.0,0.00032603,7]
[423192928,1779917441000,-761.0,0.00032603,2]
[423192929,1779917441000,-500.0,0.00032603,2]
[423192931,1779917441000,-500.0,0.00032603,2]
[423192930,1779917441000,-500.0,0.00032603,2]
[423192935,1779917441000,-184.29306524,0.00032603,2]
[423192934,1779917441000,-500.0,0.00032603,2]
[423192932,1779917441000,-500.0,0.00032603,2]
[423192936,1779917441000,-500.0,0.00032603,2]
[423192933,1779917441000,-500.0,0.00032603,2]
[423192927,1779917441000,-442.0,0.00032603,2]
[423192957,1779917441000,-563.0,0.00032603,2]
[423192984,1779917441000,-155.0,0.00032685,30]
[423192964,1779917441000,-563.0,0.00032603,2]
[423192988,1779917441000,-446.0,0.00032685,30]
[423192989,1779917441000,-309.0,0.000327,2]
[423192990,1779917441000,-1000.0,0.000327,2]
[423192995,1779917441000,-150.0,0.00032781,2]
[423192994,1779917441000,-150.0,0.00032781,2]
[423192991,1779917441000,-315.0,0.000327,2]
[423192992,1779917441000,-500.0,0.00032734,24]
[423192996,1779917441000,-1980.8648231,0.00032852,2]
[423192997,1779917441000,-603.64,0.00032876,2]
[423192987,1779917441000,-155.0,0.00032685,30]
[423192998,1779917441000,-281.31,0.00032877,2]
[423193000,1779917441000,-1349.0,0.00032877,2]
[423193004,1779917441000,-1349.0,0.00032877,2]
[423193006,1779917441000,-1349.0,0.00032877,2]
[423193002,1779917441000,-1349.0,0.00032877,2]
[423193001,1779917441000,-1349.0,0.00032877,2]
[423193005,1779917441000,-1349.0,0.00032877,2]
[423193003,1779917441000,-1349.0,0.00032877,2]
[423193007,1779917441000,-1349.0,0.00032877,2]
[423192960,1779917441000,-563.0,0.00032603,2]
[423192999,1779917441000,-1349.0,0.00032877,2]
[423192986,1779917441000,-151.0,0.00032685,30]
[423192993,1779917441000,-150.0,0.00032781,2]
[423192980,1779917441000,-225.0,0.00032684,30]
[423192963,1779917441000,-563.0,0.00032603,2]
[423192985,1779917441000,-198.0,0.00032685,30]
[423192965,1779917441000,-563.0,0.00032603,2]
[423192966,1779917441000,-563.0,0.00032603,2]
[423192967,1779917441000,-563.0,0.00032603,2]
[423192968,1779917441000,-563.0,0.00032603,2]
[423192970,1779917441000,-563.0,0.00032603,2]
[423192971,1779917441000,-563.0,0.00032603,2]
[423192972,1779917441000,-563.0,0.00032603,2]
[423192969,1779917441000,-563.0,0.00032603,2]
[423192974,1779917441000,-563.0,0.00032603,2]
[423192975,1779917441000,-563.0,0.00032603,2]
[423192982,1779917441000,-152.0,0.00032684,30]
[423192973,1779917441000,-563.0,0.00032603,2]
[423192983,1779917441000,-213.0,0.00032684,30]
[423192979,1779917441000,-154.0,0.00032684,30]
[423193008,1779917441000,-1349.0,0.00032877,2]
[423192981,1779917441000,-159.0,0.00032684,30]
[423192977,1779917441000,-563.0,0.00032603,2]
[423192976,1779917441000,-563.0,0.00032603,2]
[423192978,1779917441000,-568.2243131,0.00032603,2]
[423193040,1779917442000,-152.0,0.00033057,7]
[423193034,1779917442000,-1544.0,0.00033057,7]
[423193035,1779917442000,-1544.0,0.00033057,7]
[423193038,1779917442000,-1544.0,0.00033057,7]
[423193039,1779917442000,-151.0,0.00033057,7]
[423193033,1779917442000,-600.61537141,0.00033057,7]
[423193037,1779917442000,-1544.0,0.00033057,7]
[423193036,1779917442000,-1544.0,0.00033057,7]
[423193043,1779917442000,-1272.0,0.00033165,2]
[423193053,1779917442000,-181.83,0.0003358,14]
[423193041,1779917442000,-154.0,0.00033057,7]
[423193044,1779917442000,-525.0,0.00033165,2]
[423193046,1779917442000,-1059.1,0.00033197,30]
[423193045,1779917442000,-1225.0,0.00033165,2]
[423193048,1779917442000,-22630.87504843,0.00033307,2]
[423193049,1779917442000,-621.78829552,0.00033398,2]
[423193050,1779917442000,-775.4783256,0.00033398,2]
[423193051,1779917442000,-1500.0,0.000334,7]
[423193032,1779917442000,-943.38462859,0.00033057,7]
[423193042,1779917442000,-505.0,0.00033158,10]
[423193030,1779917442000,-1544.0,0.00033057,7]
[423193009,1779917442000,-1349.0,0.00032877,2]
[423193031,1779917442000,-1544.0,0.00033057,7]
[423193055,1779917442000,-225.0,0.00033684,30]
[423193011,1779917442000,-1349.0,0.00032877,2]
[423193010,1779917442000,-1349.0,0.00032877,2]
[423193012,1779917442000,-1349.0,0.00032877,2]
[423193014,1779917442000,-1349.0,0.00032877,2]
[423193013,1779917442000,-1349.0,0.00032877,2]
[423193018,1779917442000,-1349.0,0.00032877,2]
[423193020,1779917442000,-1349.0,0.00032877,2]
[423193016,1779917442000,-1349.0,0.00032877,2]
[423193025,1779917442000,-395.19,0.00033014,5]
[423193019,1779917442000,-1349.0,0.00032877,2]
[423193017,1779917442000,-1349.0,0.00032877,2]
[423193021,1779917442000,-1349.0,0.00032877,2]
[423193023,1779917442000,-2000.0,0.000329,7]
[423193022,1779917442000,-1365.38617582,0.00032877,2]
[423193024,1779917442000,-194.09606381,0.00033,120]
[423193026,1779917442000,-1544.0,0.00033057,7]
[423193028,1779917442000,-1544.0,0.00033057,7]
[423193027,1779917442000,-1544.0,0.00033057,7]
[423193029,1779917442000,-1544.0,0.00033057,7]
[423193015,1779917442000,-1349.0,0.00032877,2]
[423193054,1779917442000,-154.0,0.00033684,30]
[423193047,1779917442000,-152.0,0.00033286,3]
[423193052,1779917442000,-2054.15682156,0.000334,2]
[423193082,1779917442000,-446.0,0.00034685,30]
[423193083,1779917442000,-505.0,0.00034774,12]
[423193084,1779917442000,-194.09606381,0.00035,120]
[423193085,1779917442000,-1000.01345832,0.00035,2]
[423193086,1779917442000,-183.27090891,0.00035,2]
[423193087,1779917442000,-293.646211,0.00035239,5]
[423193089,1779917442000,-330.0,0.00035383,38]
[423193088,1779917442000,-200.0,0.0003531,10]
[423193091,1779917442000,-569.20624536,0.00035396,2]
[423193081,1779917442000,-155.0,0.00034685,30]
[423193090,1779917442000,-124.930518,0.00035396,2]
[423193094,1779917442000,-150.0,0.00035408,7]
[423193098,1779917442000,-150.0,0.00035408,7]
[423193096,1779917442000,-85.21184141,0.00035408,7]
[423193095,1779917442000,-150.0,0.00035408,7]
[423193097,1779917442000,-64.78815859,0.00035408,7]
[423193099,1779917442000,-150.0,0.00035408,7]
[423193100,1779917442000,-84.08669575,0.00035408,7]
[423193102,1779917442000,-340.59992535,0.00015346,2]
[423193056,1779917442000,-159.0,0.00033684,30]
[423193093,1779917442000,-150.0,0.00035408,7]
[423193080,1779917442000,-151.0,0.00034685,30]
[423193092,1779917442000,-150.0,0.00035408,30]
[423193077,1779917442000,-213.0,0.00034684,30]
[423193057,1779917442000,-152.0,0.00033684,30]
[423193078,1779917442000,-155.0,0.00034685,30]
[423193058,1779917442000,-213.0,0.00033684,30]
[423193059,1779917442000,-155.0,0.00033685,30]
[423193060,1779917442000,-198.0,0.00033685,30]
[423193062,1779917442000,-155.0,0.00033685,30]
[423193067,1779917442000,-151.0,0.00034179,14]
[423193065,1779917442000,-500.0,0.00033716,26]
[423193064,1779917442000,-1784.17,0.000337,14]
[423193066,1779917442000,-194.09606381,0.000339,120]
[423193063,1779917442000,-446.0,0.00033685,30]
[423193068,1779917442000,-494.24409509,0.00034181,2]
[423193069,1779917442000,-574.6,0.00034182,7]
[423193070,1779917442000,-167.16450666,0.00034186,2]
[423193072,1779917442000,-245.24347086,0.00034453,2]
[423193071,1779917442000,-2000.0,0.000342,7]
[423193073,1779917442000,-154.0,0.00034684,30]
[423193074,1779917442000,-225.0,0.00034684,30]
[423193076,1779917442000,-152.0,0.00034684,30]
[423193061,1779917442000,-151.0,0.00033685,30]
[423193075,1779917442000,-159.0,0.00034684,30]
[423193079,1779917442000,-198.0,0.00034685,30]
[423193165,1779917443000,-1263.96825586,0.00035428,2]
[423193159,1779917443000,-300.0,0.00035428,2]
[423193164,1779917443000,-300.0,0.00035428,2]
[423193162,1779917443000,-300.0,0.00035428,2]
[423193153,1779917443000,-300.0,0.00035428,2]
[423193151,1779917443000,-498.41260937,0.00035428,2]
[423193137,1779917443000,-300.0,0.00035428,2]
[423193140,1779917443000,-300.0,0.00035428,2]
[423193133,1779917443000,-300.0,0.00035428,2]
[423193171,1779917443000,-300.0,0.00035428,2]
[423193131,1779917443000,-300.0,0.00035428,2]
[423193155,1779917443000,-300.0,0.00035428,2]
[423193168,1779917443000,-300.0,0.00035428,2]
[423193186,1779917443000,-300.0,0.00035428,2]
[423193170,1779917443000,-1800.09388364,0.00035428,2]
[423193172,1779917443000,-1148.83589152,0.00035428,2]
[423193167,1779917443000,-300.0,0.00035428,2]
[423193169,1779917443000,-950.32029804,0.00035428,2]
[423193173,1779917443000,-310.02493426,0.00035428,2]
[423193174,1779917443000,-300.0,0.00035428,2]
[423193175,1779917443000,-1634.44392223,0.00035428,2]
[423193178,1779917443000,-594.79850986,0.00035428,2]
[423193177,1779917443000,-300.0,0.00035428,2]
[423193183,1779917443000,-578.28315025,0.00035428,2]
[423193184,1779917443000,-452.52893397,0.00035428,2]
[423193182,1779917443000,-300.0,0.00035428,2]
[423193149,1779917443000,-302.21937029,0.00035428,2]
[423193166,1779917443000,-527.62572404,0.00035428,2]
[423193146,1779917443000,-727.07827244,0.00035428,2]
[423193115,1779917443000,-1148.83589152,0.00035428,2]
[423193144,1779917443000,-528.48327171,0.00035428,2]
[423193103,1779917443000,-203.19,0.00024658,2]
[423193104,1779917443000,-151.0,0.00027253,3]
[423193106,1779917443000,-152.0,0.00027253,3]
[423193105,1779917443000,-152.0,0.00027253,3]
[423193108,1779917443000,-928.0,0.00030383,2]
[423193110,1779917443000,-65.91330425,0.00035408,7]
[423193107,1779917443000,-3649.29,0.00027397,10]
[423193109,1779917443000,-928.0,0.00033383,2]
[423193112,1779917443000,-1800.09388364,0.00035428,2]
[423193116,1779917443000,-300.0,0.00035428,2]
[423193111,1779917443000,-150.0,0.00035408,7]
[423193114,1779917443000,-300.0,0.00035428,2]
[423193113,1779917443000,-1800.09388364,0.00035428,2]
[423193142,1779917443000,-300.0,0.00035428,2]
[423193117,1779917443000,-300.0,0.00035428,2]
[423193119,1779917443000,-300.0,0.00035428,2]
[423193124,1779917443000,-300.0,0.00035428,2]
[423193128,1779917443000,-593.12439472,0.00035428,2]
[423193123,1779917443000,-300.0,0.00035428,2]
[423193120,1779917443000,-464.48677942,0.00035428,2]
[423193122,1779917443000,-300.0,0.00035428,2]
[423193125,1779917443000,-484.76763572,0.00035428,2]
[423193121,1779917443000,-578.28315025,0.00035428,2]
[423193126,1779917443000,-572.23504943,0.00035428,2]
[423193127,1779917443000,-300.0,0.00035428,2]
[423193130,1779917443000,-300.0,0.00035428,2]
[423193129,1779917443000,-300.0,0.00035428,2]
[423193132,1779917443000,-300.0,0.00035428,2]
[423193118,1779917443000,-594.79850986,0.00035428,2]
[423193179,1779917443000,-300.0,0.00035428,2]
[423193185,1779917443000,-300.0,0.00035428,2]
[423193181,1779917443000,-464.48677942,0.00035428,2]
[423193215,1779917443000,-727.07827244,0.00035428,2]
[423193220,1779917443000,-351.10144345,0.00035428,2]
[423193224,1779917443000,-300.0,0.00035428,2]
[423193223,1779917443000,-300.0,0.00035428,2]
[423193222,1779917443000,-300.0,0.00035428,2]
[423193221,1779917443000,-300.0,0.00035428,2]